fUSD/lending_fUSD_20240618
["ID","MTS","AMOUNT","RATE_DAILY","PERIOD"]
[329794620,1718676659655,-439.66136878,0.00022191,3]
[329794621,1718676659665,-500.0,0.00022191,3]
[329794622,1718676659675,-502.02786024,0.00022191,3]
[329794623,1718676659684,-312.47,0.00022191,3]
[329794624,1718676659693,-500.0,0.00022191,3]
[329794625,1718676659702,-500.0,0.00022191,3]
[329794626,1718676659712,-500.0,0.00022191,3]
[329794627,1718676659721,-307.25,0.00022191,3]
[329794628,1718676659731,-532.36,0.00022191,7]
[329794629,1718676659740,-507.13,0.00022191,3]
[329794630,1718676659750,-521.00054609,0.00022191,3]
[329794631,1718676659760,-504.4389068,0.00022191,3]
[329794632,1718676659769,-500.0,0.00022191,3]
[329794633,1718676659778,-500.0,0.00022191,3]
[329794634,1718676659787,-500.0,0.00022191,3]
[329794635,1718676659797,-500.0,0.00022191,3]
[329794636,1718676659806,-544.32,0.00022191,3]
[329794637,1718676659816,-500.0,0.00022191,3]
[329794638,1718676659825,-641.24,0.00022191,3]
[329794639,1718676659836,-500.0,0.00022191,3]
[329794640,1718676659846,-500.0,0.00022191,3]
[329794641,1718676659855,-500.0,0.00022191,3]
[329794642,1718676659870,-527.38,0.00022191,3]
[329794643,1718676659879,-500.0,0.00022191,3]
[329794644,1718676659889,-500.0,0.00022191,3]
[329794645,1718676659899,-500.0,0.00022191,3]
[329794646,1718676659909,-736.51,0.00022191,3]
[329794647,1718676659918,-819.75,0.00022191,3]
[329794648,1718676659928,-10429.44,0.00022191,3]
[329794649,1718676659938,-500.0,0.00022191,3]
[329794650,1718676659948,-612.27,0.00022191,3]
[329794651,1718676659958,-500.0,0.00022191,3]
[329794652,1718676659967,-500.0,0.00022191,3]
[329794653,1718676659977,-575.63,0.00022191,3]
[329794654,1718676659987,-500.0,0.00022191,3]
[329794655,1718676659996,-544.66,0.00022191,3]
[329794656,1718676660006,-2103.64,0.00022191,3]
[329794657,1718676660016,-852.63,0.00022191,3]
[329794658,1718676660025,-500.0,0.00022191,3]
[329794659,1718676660035,-500.0,0.00022191,3]
[329794660,1718676660044,-810.71,0.00022191,3]
[329794661,1718676660053,-1089.1,0.00022191,3]
[329794662,1718676660063,-1027.56,0.00022191,3]
[329794663,1718676660072,-500.0,0.00022191,3]
[329794664,1718676660082,-526.95,0.00022191,3]
[329794665,1718676660092,-1131.91,0.00022191,3]
[329794666,1718676660104,-500.0,0.00022191,3]
[329794667,1718676660117,-500.0,0.00022191,3]
[329794668,1718676660127,-500.0,0.00022191,3]
[329794669,1718676660138,-500.0,0.00022191,3]
[329794670,1718676660148,-1337.13,0.00022191,3]
[329794671,1718676660158,-500.0,0.00022191,3]
[329794672,1718676660168,-500.0,0.00022191,3]
[329794673,1718676660177,-500.0,0.00022191,3]
[329794674,1718676660186,-500.0,0.00022191,3]
[329794675,1718676660196,-583.2,0.00022191,3]
[329794676,1718676660206,-530.1,0.00022191,3]
[329794677,1718676660215,-500.0,0.00022191,3]
[329794678,1718676660225,-500.0,0.00022191,3]
[329794679,1718676660235,-157.8965227,0.00022191,3]
[329794680,1718676660244,-3411.12,0.00022191,3]
[329794681,1718676660254,-785.58,0.00022191,3]
[329794682,1718676660264,-1000.75,0.00022191,3]
[329794683,1718676660273,-500.0,0.00022191,3]
[329794684,1718676660283,-840.01,0.00022191,3]
[329794685,1718676660295,-500.0,0.00022191,3]
[329794686,1718676660307,-500.0,0.00022191,3]
[329794687,1718676660317,-500.0,0.00022191,3]
[329794688,1718676660327,-699.74,0.00022191,3]
[329794689,1718676660338,-4790.11,0.00022191,3]
[329794690,1718676660348,-3087.57,0.00022191,3]
[329794691,1718676660359,-507.32493495,0.00022191,3]
[329794692,1718676660374,-1259.69,0.00022191,3]
[329794693,1718676660384,-500.0,0.00022191,3]
[329794694,1718676660394,-500.0,0.00022191,3]
[329794695,1718676660405,-529.79,0.00022191,3]
[329794696,1718676660416,-2959.59,0.00022191,3]
[329794697,1718676660426,-552.71,0.00022191,3]
[329794698,1718676660436,-505.80670384,0.00022191,3]
[329794699,1718676660446,-502.04,0.00022191,3]
[329794700,1718676660456,-22703.35,0.00022191,3]
[329794701,1718676660466,-543.79,0.00022191,3]
[329794702,1718676660476,-923.07,0.00022191,3]
[329794703,1718676660486,-739.0,0.00022191,3]
[329794704,1718676660496,-6351.86,0.00022191,3]
[329794705,1718676660506,-1601.28,0.00022191,3]
[329794706,1718676660515,-24321.84,0.00022191,3]
[329794707,1718676660525,-500.0,0.00022191,3]
[329794708,1718676660535,-776.02,0.00022191,3]
[329794709,1718676660545,-500.44,0.00022191,3]
[329794710,1718676660556,-500.0,0.00022191,3]
[329794711,1718676660566,-520.15,0.00022191,3]
[329794712,1718676660576,-1059.96,0.00022191,3]
[329794713,1718676660586,-500.0,0.00022191,3]
[329794714,1718676660596,-1015.1,0.00022191,3]
[329794715,1718676660606,-500.0,0.00022191,3]
[329794716,1718676660623,-760.04,0.00022191,3]
[329794717,1718676660633,-2740.08,0.00022191,3]
[329794718,1718676660643,-500.0,0.00022191,3]
[329794719,1718676660654,-1112.87,0.00022191,3]
[329794720,1718676660664,-1286.96,0.00022191,3]
[329794721,1718676660674,-500.0,0.00022191,3]
[329794722,1718676660684,-500.0,0.00022191,3]
[329794723,1718676660694,-11890.25,0.00022191,3]
[329794724,1718676660704,-500.0,0.00022191,3]
[329794725,1718676660713,-500.0,0.00022191,3]
[329794726,1718676660723,-500.0,0.00022191,3]
[329794727,1718676660734,-507.2519354,0.00022191,3]
[329794728,1718676660744,-4192.39,0.00022191,3]
[329794729,1718676660754,-500.0,0.00022191,3]
[329794730,1718676660764,-500.0,0.00022191,3]
[329794731,1718676660775,-3772.94,0.00022191,3]
[329794732,1718676660785,-686.53,0.00022191,3]
[329794733,1718676660795,-9011.49,0.00022191,3]
[329794734,1718676660805,-707.98,0.00022191,3]
[329794735,1718676660815,-215.45701498,0.00022191,3]
[329794736,1718676660824,-507.22688098,0.00022191,3]
[329794737,1718676660834,-2223.59,0.00022191,3]
[329794738,1718676660844,-500.0,0.00022191,3]
[329794739,1718676660854,-500.0,0.00022191,3]
[329794740,1718676660871,-501.2790521,0.00022191,3]
[329794741,1718676660880,-26293.95,0.00022191,3]
[329794742,1718676660890,-500.0,0.00022191,3]
[329794743,1718676660899,-3587.41,0.00022191,3]
[329794744,1718676660909,-500.0,0.00022191,3]
[329794745,1718676660919,-1359.03,0.00022191,3]
[329794746,1718676660928,-6723.18,0.00022191,3]
[329794747,1718676660937,-500.0,0.00022191,3]
[329794748,1718676660947,-500.0,0.00022191,3]
[329794749,1718676660957,-1745.44,0.00022191,3]
[329794750,1718676660967,-926.78,0.00022191,3]
[329794751,1718676660977,-1745.95,0.00022191,3]
[329794752,1718676660987,-619.47,0.00022191,3]
[329794753,1718676660997,-4193.12,0.00022191,3]
[329794754,1718676661007,-621.07,0.00022191,3]
[329794755,1718676661017,-500.0,0.00022191,3]
[329794756,1718676661027,-594.21,0.00022191,3]
[329794757,1718676661036,-3850.13,0.00022191,3]
[329794758,1718676661047,-27842.45,0.00022191,3]
[329794759,1718676661056,-645.62,0.00022191,3]
[329794760,1718676661066,-1540.08,0.00022191,3]
[329794761,1718676661076,-1094.56,0.00022191,3]
[329794762,1718676661085,-311.97998744,0.00022191,3]
[329794763,1718676661095,-661.21,0.00022191,3]
[329794764,1718676661106,-500.0,0.00022191,3]
[329794765,1718676661122,-500.0,0.00022191,3]
[329794766,1718676661132,-2987.84,0.00022191,3]
[329794767,1718676661141,-514.95,0.00022191,3]
[329794768,1718676661150,-1261.11,0.00022191,3]
[329794769,1718676661160,-795.82,0.00022191,3]
[329794770,1718676661169,-2924.19,0.00022191,3]
[329794771,1718676661180,-500.0,0.00022191,3]
[329794772,1718676661189,-749.35,0.00022191,3]
[329794773,1718676661199,-2158.25,0.00022191,3]
[329794774,1718676661208,-661.72,0.00022191,3]
[329794775,1718676661218,-594.69,0.00022191,3]
[329794776,1718676661228,-503.77469661,0.00022191,3]
[329794777,1718676661238,-500.0,0.00022191,3]
[329794778,1718676661248,-504.84530068,0.00022191,3]
[329794779,1718676661257,-4069.43,0.00022191,3]
[329794780,1718676661267,-505.60601085,0.00022191,3]
[329794781,1718676661276,-1011.13,0.00022191,3]
[329794782,1718676661286,-500.0,0.00022191,3]
[329794783,1718676661297,-5600.92,0.00022191,3]
[329794784,1718676661307,-500.0,0.00022191,3]
[329794785,1718676661320,-984.43,0.00022191,3]
[329794786,1718676661330,-500.0,0.00022191,3]
[329794787,1718676661341,-500.0,0.00022191,3]
[329794788,1718676661351,-500.0,0.00022191,3]
[329794789,1718676661367,-500.0,0.00022191,3]
[329794790,1718676661376,-1263.82,0.00022191,3]
[329794791,1718676661386,-505.38928504,0.00022191,3]
[329794792,1718676661398,-673.74,0.00022191,3]
[329794793,1718676661408,-653.23,0.00022191,3]
[329794794,1718676661418,-2422.66,0.00022191,3]
[329794795,1718676661428,-6023.4,0.00022191,3]
[329794796,1718676661438,-500.0,0.00022191,3]
[329794797,1718676661448,-1367.03,0.00022191,3]
[329794798,1718676661459,-562.59302609,0.00022191,3]
[329794799,1718676661468,-500.0,0.00022191,3]
[329794800,1718676661478,-500.0,0.00022191,3]
[329794801,1718676661488,-783.44,0.00022191,3]
[329794802,1718676661498,-706.19,0.00022191,3]
[329794803,1718676661508,-912.87,0.00022191,3]
[329794804,1718676661517,-1082.91,0.00022191,3]
[329794805,1718676661527,-2628.53,0.00022191,3]
[329794806,1718676661536,-549.2,0.00022191,3]
[329794807,1718676661546,-506.24181763,0.00022191,3]
[329794808,1718676661556,-500.0,0.00022191,3]
[329794809,1718676661566,-500.0,0.00022191,3]
[329794810,1718676661576,-537.42,0.00022191,3]
[329794811,1718676661586,-500.0,0.00022191,3]
[329794812,1718676661596,-500.0,0.00022191,3]
[329794813,1718676661606,-1088.23,0.00022191,3]
[329794814,1718676661622,-2450.08,0.00022191,3]
[329794815,1718676661632,-530.81,0.00022191,3]
[329794816,1718676661643,-500.0,0.00022191,3]
[329794817,1718676661652,-558.49,0.00022191,3]
[329794818,1718676661662,-8000.8,0.00022191,3]
[329794819,1718676661672,-8052.48,0.00022191,3]
[329794820,1718676661682,-2473.69,0.00022191,3]
[329794821,1718676661692,-500.0,0.00022191,3]
[329794822,1718676661703,-506.75063808,0.00022191,3]
[329794823,1718676661713,-509.19267825,0.00022191,3]
[329794824,1718676661723,-500.0,0.00022191,3]
[329794825,1718676661733,-502.67,0.00022191,3]
[329794826,1718676661743,-500.0,0.00022191,3]
[329794827,1718676661752,-500.0,0.00022191,3]
[329794828,1718676661762,-894.77,0.00022191,3]
[329794829,1718676661772,-1053.43,0.00022191,3]
[329794830,1718676661782,-500.81318044,0.00022191,3]
[329794831,1718676661792,-3201.76,0.00022191,3]
[329794832,1718676661802,-1314.25,0.00022191,3]
[329794833,1718676661812,-501.40268101,0.00022191,3]
[329794834,1718676661822,-2530.34,0.00022191,3]
[329794835,1718676661832,-2509.46,0.00022191,3]
[329794836,1718676661842,-517.24,0.00022191,3]
[329794837,1718676661852,-500.0,0.00022191,3]
[329794838,1718676661870,-950.76,0.00022191,3]
[329794839,1718676661880,-500.0,0.00022191,3]
[329794840,1718676661890,-4256.25,0.00022191,3]
[329794841,1718676661901,-736.76,0.00022191,3]
[329794842,1718676661911,-2766.28,0.00022191,3]
[329794843,1718676661921,-2282.94,0.00022191,3]
[329794844,1718676661931,-500.0,0.00022191,3]
[329794845,1718676661941,-500.0,0.00022191,3]
[329794846,1718676661950,-977.16,0.00022191,3]
[329794847,1718676661961,-926.26,0.00022191,3]
[329794848,1718676661971,-1230.32,0.00022191,3]
[329794849,1718676661981,-500.0,0.00022191,3]
[329794850,1718676661990,-704.02,0.00022191,3]
[329794851,1718676662000,-8882.38,0.00022191,3]
[329794852,1718676662010,-805.32,0.00022191,3]
[329794853,1718676662020,-2099.82,0.00022191,3]
[329794854,1718676662030,-500.0,0.00022191,3]
[329794855,1718676662040,-1462.65,0.00022191,3]
[329794856,1718676662050,-1732.34,0.00022191,3]
[329794857,1718676662060,-500.0,0.00022191,3]
[329794858,1718676662070,-500.0,0.00022191,3]
[329794859,1718676662081,-584.77,0.00022191,3]
[329794860,1718676662091,-500.0,0.00022191,3]
[329794861,1718676662101,-618.9,0.00022191,3]
[329794862,1718676662119,-4930.2,0.00022191,3]
[329794863,1718676662129,-1255.26,0.00022191,3]
[329794864,1718676662139,-3336.93,0.00022191,3]
[329794865,1718676662149,-500.0,0.00022191,3]
[329794866,1718676662158,-2775.55,0.00022191,3]
[329794867,1718676662168,-500.0,0.00022191,3]
[329794868,1718676662178,-962.56,0.00022191,3]
[329794869,1718676662188,-682.13,0.00022191,3]
[329794870,1718676662198,-3526.4,0.00022191,3]
[329794871,1718676662207,-500.0,0.00022191,3]
[329794872,1718676662217,-1394.22,0.00022191,3]
[329794873,1718676662227,-6122.69,0.00022191,3]
[329794874,1718676662237,-500.0,0.00022191,3]
[329794875,1718676662247,-3910.25,0.00022191,3]
[329794876,1718676662256,-500.0,0.00022191,3]
[329794877,1718676662267,-6105.31,0.00022191,3]
[329794878,1718676662277,-1540.44,0.00022191,3]
[329794879,1718676662287,-2090.74,0.00022191,3]
[329794880,1718676662302,-549.62,0.00022191,3]
[329794881,1718676662312,-996.54,0.00022191,3]
[329794882,1718676662323,-565.65,0.00022191,3]
[329794883,1718676662335,-543.84,0.00022191,3]
[329794884,1718676662344,-899.38,0.00022191,3]
[329794885,1718676662354,-2107.94,0.00022191,3]
[329794886,1718676662370,-4202.42,0.00022191,3]
[329794887,1718676662382,-3161.73,0.00022191,3]
[329794888,1718676662392,-504.69602419,0.00022191,3]
[329794889,1718676662401,-1476.13,0.00022191,3]
[329794890,1718676662411,-500.0,0.00022191,3]
[329794891,1718676662420,-680.25,0.00022191,3]
[329794892,1718676662429,-333.71077138,0.00022191,3]
[329794893,1718676662439,-500.0,0.00022191,3]
[329794894,1718676662448,-1006.79,0.00022191,3]
[329794895,1718676662458,-2234.37,0.00022191,3]
[329794896,1718676662468,-500.0,0.00022191,3]
[329794897,1718676662478,-19042.52,0.00022191,3]
[329794898,1718676662488,-7844.48,0.00022191,3]
[329794899,1718676662498,-2755.62,0.00022191,3]
[329794900,1718676662508,-4869.85,0.00022191,3]
[329794901,1718676662518,-623.87,0.00022191,3]
[329794902,1718676662527,-553.53,0.00022191,3]
[329794903,1718676662538,-1840.4,0.00022191,3]
[329794904,1718676662548,-1985.01381,0.00022191,2]
[329794905,1718676662558,-500.0,0.00022191,3]
[329794906,1718676662568,-2803.18,0.00022191,3]
[329794907,1718676662579,-500.0,0.00022191,3]
[329794908,1718676662589,-1568.25,0.00022191,3]
[329794909,1718676662599,-29221.56,0.00022191,3]
[329794910,1718676662616,-6077.6,0.00022191,3]
[329794911,1718676662625,-180.49098367,0.00022191,3]
[329794912,1718676662636,-593.69,0.00022191,3]
[329794913,1718676662646,-1381.13,0.00022191,3]
[329794914,1718676662656,-712.87,0.00022191,3]
[329794915,1718676662666,-1139.93,0.00022191,3]
[329794916,1718676662676,-1628.98,0.00022191,3]
[329794917,1718676662686,-2121.27,0.00022191,3]
[329794918,1718676662924,-543.12,0.00022191,3]
[329794919,1718676662935,-1200.32,0.00022191,3]
[329794920,1718676662945,-9559.25,0.00022191,3]
[329794921,1718676662954,-944.63,0.00022191,3]
[329794922,1718676662963,-500.0,0.00022191,3]
[329794923,1718676662972,-500.0,0.00022191,3]
[329794924,1718676662982,-502.42652647,0.00022191,3]
[329794925,1718676662991,-2701.49,0.00022191,3]
[329794926,1718676663001,-2185.08,0.00022191,3]
[329794927,1718676663010,-1743.11,0.00022191,3]
[329794928,1718676663020,-500.0,0.00022191,3]
[329794929,1718676663030,-2072.03,0.00022191,3]
[329794930,1718676663039,-500.0,0.00022191,3]
[329794931,1718676663048,-977.76,0.00022192,3]
[329794932,1718676663058,-1351.87,0.00022222,2]
[329794933,1718676663067,-68507.43518965,0.00022265,2]
[329794934,1718676663076,-3166.76246483,0.00022327,2]
[329794935,1718676663086,-192.80444479,0.00022365,2]
[329794936,1718676663095,-159.74386372,0.00022365,4]
[329794937,1718676663104,-150.5,0.00022435,15]
[329794938,1718676663122,-150.5,0.00022445,15]
[329794939,1718676663132,-152.0,0.00022454,4]
[329794940,1718676663141,-150.5,0.00022455,15]
[329794941,1718676663152,-871.82976932,0.00022462,2]
[329794942,1718676663162,-793.21543571,0.00022462,2]
[329794943,1718676663172,-869.01474204,0.00022462,2]
[329794944,1718676663182,-267.32341864,0.00022463,2]
[329794945,1718676663192,-303.6255318,0.00022464,2]
[329794946,1718676663202,-507.8,0.00022464,3]
[329794947,1718676663212,-507.8,0.00022464,3]
[329794948,1718676663221,-507.8,0.00022464,3]
[329794949,1718676663231,-507.8,0.00022464,3]
[329794950,1718676663241,-507.8,0.00022464,3]
[329794951,1718676663251,-507.8,0.00022464,3]
[329794952,1718676663260,-507.8,0.00022464,3]
[329794953,1718676663270,-507.8,0.00022464,3]
[329794954,1718676663279,-507.8,0.00022464,3]
[329794955,1718676663288,-507.8,0.00022464,3]
[329794956,1718676663298,-507.8,0.00022464,3]
[329794957,1718676663308,-507.8,0.00022464,3]
[329794958,1718676663322,-507.8,0.00022464,3]
[329794959,1718676663331,-508.0,0.00022464,3]
[329794960,1718676663341,-500.0,0.00022464,3]
[329794961,1718676663351,-500.0,0.00022464,3]
[329794962,1718676663364,-500.0,0.00022464,3]
[329794963,1718676663377,-500.0,0.00022464,3]
[329794964,1718676663388,-500.0,0.00022464,3]
[329794965,1718676663398,-644.74,0.00022464,3]
[329794966,1718676663408,-500.0,0.00022465,3]
[329794967,1718676663418,-500.0,0.00022465,3]
[329794968,1718676663427,-500.0,0.00022465,3]
[329794969,1718676663437,-500.0,0.00022465,3]
[329794970,1718676663446,-500.0,0.00022465,3]
[329794971,1718676663456,-500.0,0.00022465,3]
[329794972,1718676663465,-500.0,0.00022465,3]
[329794973,1718676663475,-500.0,0.00022465,3]
[329794974,1718676663484,-500.0,0.00022465,3]
[329794975,1718676663495,-500.0,0.00022465,3]
[329794976,1718676663504,-500.0,0.00022465,3]
[329794977,1718676663514,-500.0,0.00022465,3]
[329794978,1718676663524,-625.35,0.00022465,3]
[329794979,1718676663533,-500.0,0.00022465,3]
[329794980,1718676663542,-500.0,0.00022465,3]
[329794981,1718676663551,-566.40362572,0.00022465,3]
[329794982,1718676663561,-172.10692405,0.00022465,3]
[329794983,1718676663570,-500.0,0.00022465,3]
[329794984,1718676663580,-494.70025587,0.00022465,3]
[329794985,1718676663590,-529.49594541,0.00022465,3]
[329794986,1718676663599,-500.0,0.00022465,3]
[329794987,1718676663612,-500.0,0.00022465,3]
[329794988,1718676663625,-500.0,0.00022465,3]
[329794989,1718676663635,-500.0,0.00022465,3]
[329794990,1718676663644,-1097.0,0.00022465,3]
[329794991,1718676663655,-500.0,0.00022465,3]
[329794992,1718676663665,-1140.28,0.00022465,3]
[329794993,1718676663675,-500.0,0.00022465,3]
[329794994,1718676663685,-868.22,0.00022465,3]
[329794995,1718676663695,-500.0,0.00022465,3]
[329794996,1718676663704,-500.0,0.00022465,3]
[329794997,1718676663714,-500.0,0.00022465,3]
[329794998,1718676663724,-500.0,0.00022465,3]
[329794999,1718676663735,-956.5,0.00022465,3]
[329795000,1718676663745,-180.46894912,0.00022465,3]
[329795001,1718676663757,-500.0,0.00022465,3]
[329795002,1718676663767,-500.0,0.00022465,3]
[329795003,1718676663776,-500.0,0.00022465,3]
[329795004,1718676663786,-153.57672089,0.00022465,3]
[329795005,1718676663796,-500.0,0.00022465,3]
[329795006,1718676663805,-548.41,0.00022465,3]
[329795007,1718676663815,-1075.86,0.00022465,3]
[329795008,1718676663825,-500.0,0.00022465,3]
[329795009,1718676663835,-609.98,0.00022465,3]
[329795010,1718676663845,-559.72,0.00022465,3]
[329795011,1718676663855,-500.0,0.00022465,3]
[329795012,1718676663874,-500.0,0.00022465,3]
[329795013,1718676663884,-301.64995251,0.00022465,3]
[329795014,1718676663894,-500.0,0.00022465,3]
[329795015,1718676663903,-500.0,0.00022465,3]
[329795016,1718676663914,-500.0,0.00022465,3]
[329795017,1718676663924,-931.88,0.00022465,3]
[329795018,1718676663933,-500.0,0.00022465,3]
[329795019,1718676663943,-500.0,0.00022465,3]
[329795020,1718676663953,-500.0,0.00022465,3]
[329795021,1718676663962,-500.0,0.00022465,3]
[329795022,1718676663972,-500.0,0.00022465,3]
[329795023,1718676663981,-633.68,0.00022465,3]
[329795024,1718676663991,-643.00944003,0.00022465,3]
[329795025,1718676664001,-500.0,0.00022465,3]
[329795026,1718676664011,-500.0,0.00022465,3]
[329795027,1718676664021,-1399.97,0.00022465,3]
[329795028,1718676664031,-859.44,0.00022465,3]
[329795029,1718676664041,-500.0,0.00022465,3]
[329795030,1718676664051,-500.0,0.00022465,3]
[329795031,1718676664060,-500.0,0.00022465,3]
[329795032,1718676664070,-939.87,0.00022465,3]
[329795033,1718676664080,-500.0,0.00022465,3]
[329795034,1718676664091,-500.0,0.00022465,3]
[329795035,1718676664101,-500.0,0.00022465,3]
[329795036,1718676664118,-693.78,0.00022465,3]
[329795037,1718676664128,-782.52,0.00022465,3]
[329795038,1718676664138,-500.0,0.00022465,3]
[329795039,1718676664147,-500.0,0.00022465,3]
[329795040,1718676664156,-500.0,0.00022465,3]
[329795041,1718676664166,-883.84,0.00022465,3]
[329795042,1718676664175,-186.61421968,0.00022465,3]
[329795043,1718676664184,-874.78,0.00022465,3]
[329795044,1718676664194,-500.0,0.00022465,3]
[329795045,1718676664203,-500.0,0.00022465,3]
[329795046,1718676664212,-691.82,0.00022465,3]
[329795047,1718676664222,-500.0,0.00022465,3]
[329795048,1718676664231,-500.0,0.00022465,3]
[329795049,1718676664240,-768.06,0.00022465,3]
[329795050,1718676664251,-500.0,0.00022465,3]
[329795051,1718676664261,-616.87,0.00022465,3]
[329795052,1718676664271,-500.0,0.00022465,3]
[329795053,1718676664281,-500.0,0.00022465,3]
[329795054,1718676664292,-742.03,0.00022465,3]
[329795055,1718676664305,-786.62,0.00022465,3]
[329795056,1718676664314,-914.08,0.00022465,3]
[329795057,1718676664325,-500.0,0.00022465,3]
[329795058,1718676664336,-650.85,0.00022465,3]
[329795059,1718676664346,-500.0,0.00022465,3]
[329795060,1718676664355,-500.0,0.00022465,3]
[329795061,1718676664378,-500.0,0.00022465,3]
[329795062,1718676664388,-616.28,0.00022465,3]
[329795063,1718676664398,-500.0,0.00022465,3]
[329795064,1718676664408,-500.0,0.00022465,3]
[329795065,1718676664418,-500.0,0.00022465,3]
[329795066,1718676664428,-841.71,0.00022465,3]
[329795067,1718676664438,-500.0,0.00022465,3]
[329795068,1718676664448,-500.0,0.00022465,3]
[329795069,1718676664458,-500.0,0.00022465,3]
[329795070,1718676664469,-500.0,0.00022465,3]
[329795071,1718676664479,-600.15,0.00022465,3]
[329795072,1718676664488,-500.0,0.00022465,3]
[329795073,1718676664499,-621.59,0.00022465,3]
[329795074,1718676664509,-722.06,0.00022465,3]
[329795075,1718676664519,-500.0,0.00022465,3]
[329795076,1718676664528,-500.0,0.00022465,3]
[329795077,1718676664538,-516.53,0.00022465,3]
[329795078,1718676664549,-630.34507761,0.00022465,3]
[329795079,1718676664559,-500.0,0.00022465,3]
[329795080,1718676664569,-500.0,0.00022465,3]
[329795081,1718676664578,-500.0,0.00022465,3]
[329795082,1718676664588,-500.0,0.00022465,3]
[329795083,1718676664598,-500.0,0.00022465,3]
[329795084,1718676664607,-500.0,0.00022465,3]
[329795085,1718676664626,-500.0,0.00022465,3]
[329795086,1718676664635,-835.3,0.00022465,3]
[329795087,1718676664645,-500.0,0.00022465,3]
[329795088,1718676664654,-500.0,0.00022465,3]
[329795089,1718676664662,-500.0,0.00022465,3]
[329795090,1718676664672,-500.0,0.00022465,3]
[329795091,1718676664681,-200.62309625,0.00022465,3]
[329795092,1718676664690,-500.0,0.00022465,3]
[329795093,1718676664699,-500.0,0.00022465,3]
[329795094,1718676664708,-500.0,0.00022465,3]
[329795095,1718676664717,-500.0,0.00022465,3]
[329795096,1718676664726,-500.0,0.00022465,3]
[329795097,1718676664735,-581.07,0.00022465,3]
[329795098,1718676664744,-500.0,0.00022465,3]
[329795099,1718676664754,-573.98,0.00022465,3]
[329795100,1718676664763,-500.0,0.00022465,3]
[329795101,1718676664772,-500.0,0.00022465,3]
[329795102,1718676664783,-222.29,0.00022465,3]
[329795103,1718676664792,-500.0,0.00022465,3]
[329795104,1718676664802,-526.30360994,0.00022465,3]
[329795105,1718676664811,-500.0,0.00022465,3]
[329795106,1718676664821,-500.0,0.00022465,3]
[329795107,1718676664831,-500.0,0.00022465,3]
[329795108,1718676664841,-500.0,0.00022465,3]
[329795109,1718676664850,-649.66,0.00022465,3]
[329795110,1718676664865,-667.34,0.00022465,3]
[329795111,1718676664876,-500.0,0.00022465,3]
[329795112,1718676664885,-711.49,0.00022465,3]
[329795113,1718676664895,-500.0,0.00022465,3]
[329795114,1718676664905,-567.75,0.00022465,3]
[329795115,1718676664915,-500.0,0.00022465,3]
[329795116,1718676664924,-500.0,0.00022465,3]
[329795117,1718676664934,-993.55,0.00022465,3]
[329795118,1718676664943,-500.0,0.00022465,3]
[329795119,1718676664953,-600.69,0.00022465,3]